Cogmind - Beta 10 X2 @@@ ROGUE MODE // 2020.06.30 @ 09:48:38 Player: KernelPanic Result: Destroyed by G-47 Trooper with Particle Gun Performance ------------- Evolutions (2) 1000 Regions Visited (5) 1000 Robots Destroyed (21) 105 Value Destroyed (600) 600 Prototype IDs (1) 20 Alien Tech Used (0) 0 Bonus (200) 200 TOTAL SCORE: 2925 Bonus ------- Entered Garrisons 200 Cogmind --------- Core Integrity 0/550 Matter 162/300 Energy 96/100 System Corruption 4% Temperature Cool (10) Movement Flying (40) Location -8/Garrison Parts ------- > --- POWER (1) -------- (None) > --- PROPULSION (3) --- Flight Unit > --- UTILITY (5) ------ Improved Terrain Scan Processor > --- WEAPON (2) ------- (None) > --- INVENTORY (4) ---- Ion Engine Medium Storage Unit Grenade Launcher Great Maul Peak State ------------ > --- POWER ------------ Ion Engine > --- PROPULSION ------- Wheel Improved Flight Unit Improved Flight Unit > --- UTILITY ---------- Small Storage Unit Medium Storage Unit Advanced Terrain Scanner Improved Terrain Scan Processor Improved Light Armor Plating > --- WEAPON ----------- Slug Cannon Grenade Launcher > --- INVENTORY -------- Aluminum Leg Aluminum Leg Compact Wheel Improved Flight Unit [Rating: 24] Favorites ----------- Power Light Nuclear Core Engine Ion Engine Power Core Light Nuclear Core Propulsion Compact Wheel Leg Aluminum Leg Wheel Compact Wheel Flight Unit Improved Flight Unit Utility Small Storage Unit Device Advanced Terrain Scanner Storage Small Storage Unit Processor Improved Terrain Scan Processor Protection Improved Light Armor Plating Weapon Light Assault Rifle Energy Gun Small Laser Ballistic Gun Light Assault Rifle Ballistic Cannon Slug Cannon Launcher Grenade Launcher Build | -11 -10 -10 -9 -8 -8 ------- Run | Scr Mat Min Mat Mat Gar Slots Evolved 4 | . . . 2 2 . Power . | . . . . . . Propulsion 1 | . . . 1 . . Utility 3 | . . . 1 2 . Weapon . | . . . . . . Parts Attached 19 | . 4 3 3 7 2 Power 3 | . 1 . . 1 1 Engine 1 | . . . . 1 . Core 2 | . 1 . . . 1 Reactor . | . . . . . . Propulsion 7 | . 2 . 1 3 1 Treads . | . . . . . . Leg . | . . . . . . Wheel 3 | . 2 . 1 . . Hover . | . . . . . . Flight 4 | . . . . 3 1 Utility 4 | . . 1 1 2 . Device 1 | . . . . 1 . Storage 1 | . . . 1 . . Processor 1 | . . . . 1 . Hackware . | . . . . . . Protection 1 | . . 1 . . . Artifact . | . . . . . . Weapon 5 | . 1 2 1 1 . Energy Gun . | . . . . . . Energy Cannon . | . . . . . . Ballistic Gun 2 | . 1 1 . . . Ballistic Cannon 1 | . . . 1 . . Launcher 2 | . . 1 . 1 . Special Weapon . | . . . . . . Impact Weapon . | . . . . . . Slashing Weapon . | . . . . . . Piercing Weapon . | . . . . . . Special Melee Weapon . | . . . . . . Unidentified Prototypes 1 | . . . . 1 . Parts Lost 9 | . 1 2 . 2 4 Power 1 | . . . . 1 . Propulsion 4 | . . 1 . . 3 Utility 1 | . . . . . 1 Weapon 3 | . 1 1 . 1 . Highest Loss Streak 4 | . 1 1 . 2 4 Average Slot Usage (%) 83 | . 85 92 79 85 39 Engine 2 | . 9 . . 4 . Core 9 | . 4 14 11 4 5 Wheel 21 | . 25 27 18 13 3 Flight 2 | . . . . 8 12 Device 1 | . . . . 9 3 Storage 14 | . 14 14 17 14 5 Processor 2 | . . . . 8 9 Protection 5 | . . 7 11 5 . Energy Gun 1 | . 8 . . . . Ballistic Gun 11 | . 20 14 11 3 . Ballistic Cannon 2 | . . . 5 8 . Launcher 6 | . . 13 5 4 . Naked Turns . | . . . . . . Heaviest Build 31 | 11 12 16 28 31 12 Greatest Support 32 | 20 32 32 26 26 12 Greatest Overweight (x) 2 | . . . 1 2 1 Average Overweight (x) . | . . . . . . Largest Inventory Capacity 10 | 6 6 6 10 10 6 Average Capacity 6 | 6 6 6 8 8 5 Most Carried 9 | 6 6 6 9 8 6 Average Carried 5 | 6 5 5 6 5 5 Final Capacity 10 | 6 6 6 10 6 4 Final Carried 9 | 6 5 6 9 6 4 Class Distribution -------------------- 100% | Mutant Dominant Class ---------------- Mutant | -10/Materials Mutant | -10/Mines Mutant | -9/Materials Mutant | -8/Materials Mutant | -8/Garrison Resources | -11 -10 -10 -9 -8 -8 ----------- Run | Scr Mat Min Mat Mat Gar Matter Collected 572 | 200 72 54 207 19 20 Remotely . | . . . . . . Salvage Created 503 | . 183 60 138 102 20 Parts 33 | . 14 3 8 4 4 Haulers Intercepted 1 | . . . 1 . . Recyclers Shooed 1 | . . . 1 . . Parts Field Recycled . | . . . . . . Retrieved Matter . | . . . . . . Parts Self-Destructed . | . . . . . . Prevented . | . . . . . . Kills | -11 -10 -10 -9 -8 -8 ------- Run | Scr Mat Min Mat Mat Gar Combat Hostiles Destroyed 17 | . 4 5 4 3 1 Melee 1 | . . . . . 1 Guns 4 | . 4 . . . . Cannons 1 | . . . . 1 . AOE 11 | . . 5 4 2 . Classes Destroyed 7 | . 1 1 3 2 . Worker 2 | . . . 2 . . Builder 1 | . . . . 1 . Hauler 1 | . . . 1 . . Swarmer 4 | . . 3 . . 1 Grunt 11 | . 4 2 3 2 . Duelist 1 | . . . . 1 . Sentry 1 | . . . 1 . . Best Kill Streak 5 | . 2 3 5 4 1 Combat Bots Only 4 | . 2 3 4 3 1 Max Kills in Single Turn 5 | . 1 1 5 1 1 Gunslinging . | . . . . . . Exploded 4 | . . 1 4 1 . Melee 1 | . . . . . 1 Uniques/NPCs Destroyed . | . . . . . . Combat | -11 -10 -10 -9 -8 -8 -------- Run | Scr Mat Min Mat Mat Gar Damage Taken 1621 | . 261 244 133 253 730 Core 661 | . 57 32 11 55 506 Absorbed by Shields 113 | . . . . . 113 Core Remaining (%) 87 | 100 . 64 97 . . Volleys Fired 56 | . 16 9 22 9 . Largest 2 | . 2 2 2 2 . Hottest 78 | . 60 50 68 78 . Shots Fired 105 | . 31 16 40 18 . Gun 67 | . 31 9 22 5 . Cannon 27 | . . . 18 9 . Launcher 11 | . . 7 . 4 . Special . | . . . . . . Kinetic 86 | . 23 9 40 14 . Thermal 8 | . 8 . . . . Explosive 11 | . . 7 . 4 . Electromagnetic . | . . . . . . Robot Hit Streak 10 | . 10 5 4 7 . Robot Miss Streak 4 | . 2 4 4 3 . Penetration Max . | . . . . . . Secondary Targets . | . . . . . . Shots Hit Robots 58 | . 24 10 13 11 . Core Hits 42 | . 10 10 11 9 2 Critical Hits 2 | . . . 1 1 . Critical Kills 1 | . . . 1 . . Critical Parts Destroyed 1 | . . . . 1 . Melee Attacks . | . . . . . . Impact . | . . . . . . Slashing . | . . . . . . Piercing . | . . . . . . Sneak Attacks . | . . . . . . Combat Hostiles . | . . . . . . Follow-up Attacks . | . . . . . . Damage Inflicted 1594 | . 240 321 622 398 13 Guns 431 | . 240 55 96 40 . Cannons 245 | . . . 92 153 . Explosions 905 | . . 266 434 205 . Melee . | . . . . . . Ramming 13 | . . . . . 13 Kinetic 597 | . 161 55 188 193 . Thermal 513 | . 79 . 434 . . Explosive 471 | . . 266 . 205 . Electromagnetic . | . . . . . . Impact . | . . . . . . Slashing . | . . . . . . Piercing . | . . . . . . Highest Corruption 4 | . . . . 4 4 Average Corruption 4 | . . . . 4 4 Corruption Purged . | . . . . . . Effects 6 | . . . . 3 3 Message Errors 3 | . . . . 2 1 Matter Fused 3 | . . . . 1 2 Overload Shots . | . . . . . . Overflow Damage 34 | . . . 34 . . Projectiles 11 | . . . 11 . . Explosions 23 | . . . 23 . . Melee . | . . . . . . Knockbacks 1 | . . . . 1 . Impact . | . . . . . . Kinetic 1 | . . . . 1 . Secondary . | . . . . . . Self-Inflicted Damage 104 | . . 38 61 . 5 Shots 3 | . . 1 2 . . Rammed 4 | . . . . . 4 Targets Rammed 4 | . . . . . 4 Kicked . | . . . . . . Crushed . | . . . . . . Highest Temperature 162 | . 67 22 162 55 . Average Temperature 33 | . 22 10 47 30 . Received Heat Transfer 537 | . 123 60 33 144 177 Siege Activations . | . . . . . . Robots Corrupted . | . . . . . . Combat Hostiles . | . . . . . . Parts Fried . | . . . . . . Impact Corruptions . | . . . . . . Robots Melted . | . . . . . . Combat Hostiles . | . . . . . . Parts Melted 2 | . 1 . 1 . . Heat Transferred 625 | . 175 . 450 . . Parts Sabotaged . | . . . . . . Parts Stolen . | . . . . . . Parts Stripped . | . . . . . . Power Chain Reactions . | . . . . . . Missiles Intercepted . | . . . . . . Alert | -11 -10 -10 -9 -8 -8 ------- Run | Scr Mat Min Mat Mat Gar Peak Influence 162 | . 118 160 162 156 101 Average Influence 71 | . 54 85 33 107 85 Maximum Alert Level . | . . . . . . Low Security (%) 100 | 100 100 100 100 100 100 Level 1 . | . . . . . . Level 2 . | . . . . . . Level 3 . | . . . . . . Level 4 . | . . . . . . Level 5 . | . . . . . . High Security . | . . . . . . Max Security . | . . . . . . Squads Dispatched 2 | . . . 1 1 . Investigation 2 | . . . 1 1 . Extermination . | . . . . . . Reinforcement . | . . . . . . Assault . | . . . . . . Garrison . | . . . . . . Intercept . | . . . . . . Construction Impeded . | . . . . . . Haulers Reinforced . | . . . . . . Stealth | -11 -10 -10 -9 -8 -8 --------- Run | Scr Mat Min Mat Mat Gar Distress Signals 2 | . 1 . 1 . . Communications Jammed . | . . . . . . Distress Signals . | . . . . . . Times Spotted 39 | . 6 5 7 7 14 Peak Tracking Total 11 | . 4 3 4 4 11 Tactical Retreats 1 | . . . . . 1 Traps | -11 -10 -10 -9 -8 -8 ------- Run | Scr Mat Min Mat Mat Gar Traps Triggered 6 | . 1 2 1 . 2 Indirectly . | . . . . . . Trap Hack Attempts . | . . . . . . Triggered . | . . . . . . Disarmed . | . . . . . . Reprogrammed . | . . . . . . Reused . | . . . . . . Traps Extracted . | . . . . . . Installed . | . . . . . . Triggered . | . . . . . . Machines | -11 -10 -10 -9 -8 -8 ---------- Run | Scr Mat Min Mat Mat Gar Machines Disabled 2 | . . . 2 . . Max in Single Turn 2 | . . . 2 . . Machines Sabotaged . | . . . . . . Garrisons Compromised . | . . . . . . Overloaded Fab Kills . | . . . . . . Fab Network Shutdowns . | . . . . . . Hacking | -11 -10 -10 -9 -8 -8 --------- Run | Scr Mat Min Mat Mat Gar Machines Accessed 6 | . 2 1 . 3 . Terminals 4 | . 2 . . 2 . Fabricators . | . . . . . . Repair Stations . | . . . . . . Recycling Units . | . . . . . . Scanalyzers . | . . . . . . Garrison Access 1 | . . . . 1 . Total Hacks 15 | . 4 1 . 10 . Successful 6 | . 3 1 . 2 . Failed 9 | . 1 . . 8 . Catastrophic 3 | . . . . 3 . Database Lockouts . | . . . . . . Manual 9 | . 2 . . 7 . Terminals 11 | . 4 . . 7 . Fabricators . | . . . . . . Repair Stations . | . . . . . . Recycling Units . | . . . . . . Scanalyzers . | . . . . . . Garrison Access 3 | . . . . 3 . Terminal Hacks 4 | . 2 1 . 1 . Open Door 1 | . . 1 . . . Branch Access Points 1 | . 1 . . . . Security Status 1 | . 1 . . . . Recall Investigation 1 | . . . . 1 . Fabricator Hacks . | . . . . . . Repair Station Hacks . | . . . . . . Recycling Unit Hacks . | . . . . . . Scanalyzer . | . . . . . . Garrison Access Hacks 1 | . . . . 1 . Unlock Access 1 | . . . . 1 . Unauthorized Hacks 1 | . 1 . . . . Terminals 1 | . 1 . . . . Botnet 1 | . 1 . . . . Fabricators . | . . . . . . Repair Stations . | . . . . . . Recycling Units . | . . . . . . Scanalyzers . | . . . . . . Garrison Access . | . . . . . . Data Cores Recovered . | . . . . . . Used . | . . . . . . Hacking Detections 5 | . 2 . . 3 . Full Trace Events 1 | . . . . 1 . Feedback Events . | . . . . . . Feedback Blocked . | . . . . . . Robot Schematics Acquired . | . . . . . . Robots Built . | . . . . . . Matter . | . . . . . . Time . | . . . . . . Total Robot Build Rating . | . . . . . . Part Schematics Acquired . | . . . . . . Parts Built . | . . . . . . Matter . | . . . . . . Time . | . . . . . . Total Part Build Rating . | . . . . . . Parts Repaired . | . . . . . . Time . | . . . . . . Parts Recycled . | . . . . . . Recycled Matter . | . . . . . . Retrieved Matter . | . . . . . . Retrieved Components . | . . . . . . Parts Scanalyzed . | . . . . . . Part Schematics Acquired . | . . . . . . Parts Damaged . | . . . . . . Bothacking | -11 -10 -10 -9 -8 -8 ------------ Run | Scr Mat Min Mat Mat Gar Used RIF Installer . | . . . . . . Robots Hacked . | . . . . . . Non-combat . | . . . . . . Combat . | . . . . . . Robot Hacks Applied . | . . . . . . Relay Couplers Released . | . . . . . . Robots Rewired . | . . . . . . Allies Hacked . | . . . . . . Hacks Repelled . | . . . . . . Allies | -11 -10 -10 -9 -8 -8 -------- Run | Scr Mat Min Mat Mat Gar Total Allies . | . . . . . . Largest Group . | . . . . . . Highest-Rated Group . | . . . . . . Highest-Rated Ally . | . . . . . . Total Orders . | . . . . . . Ally Attacks . | . . . . . . Total Damage . | . . . . . . Kills . | . . . . . . Allies Corrupted . | . . . . . . Allies Melted . | . . . . . . Intel | -11 -10 -10 -9 -8 -8 ------- Run | Scr Mat Min Mat Mat Gar Robot Analysis Total . | . . . . . . Derelict Logs Recovered 2 | . . 2 . . . Drone Launches . | . . . . . . Drone Recoveries . | . . . . . . Exploration | -11 -10 -10 -9 -8 -8 ------------- Run | Scr Mat Min Mat Mat Gar Turns Passed 1122 | 3 211 400 239 186 83 Spaces Moved 1006 | 3 152 369 177 146 159 Core 26 | . . . . . 26 Treads . | . . . . . . Legs 19 | 3 16 . . . . Wheels 754 | . 136 369 177 72 . Hover . | . . . . . . Flight 207 | . . . . 74 133 Fastest Speed 32 | 120 100 100 90 37 32 Average Speed 90 | 120 102 100 98 99 38 Slowest Speed 177 | 120 120 100 100 177 105 Overloaded Moves . | . . . . . . Propulsion Burnouts . | . . . . . . Robots Hopped 13 | . . . . 4 9 Cave-ins Triggered . | . . . . . . Exploration Rate (%) 29 | 2 34 80 17 9 34 Regions Visited 5 Branch Regions 1 Pre-discovered Areas 2 | . . 2 . . . Known Exits Taken 2 | . 1 . . 1 . Unknown Exits Taken 3 | 1 . 1 1 . . Scrap Searched 1 | . . 1 . . . Spaces Dug . | . . . . . . Terrain Destroyed 103 | . . 39 33 31 . Melee . | . . . . . . Projectile 10 | . . . 6 4 . AOE 93 | . . 39 27 27 . Actions | -11 -10 -10 -9 -8 -8 --------- Run | Scr Mat Min Mat Mat Gar Total 1110 | 2 180 385 204 168 171 Wait 3 | . 3 . . . . Move 981 | 2 151 368 176 141 143 Hop 7 | . . . . 1 6 Pick Up 10 | . 2 3 3 2 . Fast Attach 5 | . 1 1 2 . 1 Attach 7 | . 1 1 . 5 . Detach 5 | . 1 . . 4 . Swap 7 | . 2 1 1 2 1 Drop 11 | . 3 2 . 4 2 Fire 56 | . 16 9 22 9 . Melee . | . . . . . . Ram 4 | . . . . . 4 Kick . | . . . . . . Crush . | . . . . . . Escape Stasis 14 | . . . . . 14 Rewire . | . . . . . . Trap . | . . . . . . Miscellaneous . | . . . . . . Route ------- -11/Scrapyard -10/Materials (discovered 2 exits: *Min x2) -10/Mines -9/Materials -8/Materials -8/Garrison (discovered 1 exit: [*Mat]) History --------- Turn | Location | Event 1 | -11/Scrapyard | Discovered new exit (range 3) 4 | -11/Scrapyard | Entered Materials 182 | -10/Materials | Identified exit to Mines 215 | -10/Materials | Entered Mines 216 | -10/Mines | Learned location of Storage (-8) 318 | -10/Mines | Build established: Mutant 383 | -10/Mines | Met a Derelict who couldn't figure out how to use a Trap Extractor 404 | -10/Mines | Learned Materials terminal intel 557 | -10/Mines | A weapon hastily lodged in a ceiling crevice suddenly fell to the ground 599 | -10/Mines | Discovered new exit (range 6) 615 | -10/Mines | Entered Materials 615 | -9/Materials | Evolved 2 slots: Propulsion x1, Utility x1 616 | -9/Materials | Loaded intel: 12 terminal locations 823 | -9/Materials | Discovered new exit (range 16) 854 | -9/Materials | Entered another Materials area 854 | -8/Materials | Evolved 2 slots: Utility x2 1040 | -8/Materials | Identified exit to Garrison 1040 | -8/Materials | Entered Garrison 1054 | -8/Garrison | Triggered checkpoint 1066 | -8/Garrison | Triggered checkpoint 1068 | -8/Garrison | Triggered checkpoint 1098 | -8/Garrison | Core integrity fell below 50% 1100 | -8/Garrison | Discovered new exit (range 12) 1105 | -8/Garrison | Attempted to access garrison exit controls, blocked by remote lockdown 1116 | -8/Garrison | Core integrity fell below 20% 1123 | -8/Garrison | Destroyed by G-47 Trooper with Particle Gun Last Messages --------------- 01075_ Field strength at 67. 01076_ Field strength at 56. 01077_ Field strength at 43. 01078_ Penetrated by Slug. 01078_ Field strength at 21. 01079_ Field strength at 8. 01080_ Stasis field depleted. 01093_ System corrupted: Matter fused (-5). 01093_ Imp. Flight Unit destroyed. 01093_ Dropped Sml. Storage Unit. 01094_ Dropped Nuclear Core. 01097_ Imp. Flight Unit destroyed. 01100_ EXIT=FOUND 01105_ Attempting to access garrison exit controls... 01105_ Remote lockdown engaged. 01109_ Slammed into S-10 Pest. 01110_ S-10 Pest destroyed. 01111_ Acquired 20 matter. 01111_ Slammed into G-47 Trooper. 01114_ Acquired Flight Unit. Map ----- +----------------------------------------------------+ | ?????????????????????????????????????????????????? | | ?????????????????????????????????????????????????? | | ?????????????????????????????????????????????????? | | ?????????????????????????????????????????????????? | | ?????????????????????????????????????????????????? | | ?????????????????????????????????????????????????? | | ?????????????????????????????????????????????????? | | ?????????????????????????????????????????????????? | | ?????????????????????????????????????????????????? | | ?????????????????????????????????????????????????? | | ?????????????????????????????????????????????????? | | ?#####???????????????????????????????????????????? | | ?# #???????????????????????????????????????????? | | ?# < #############???????????????????????????????? | | ?# = #???????????????????????????????? | | ?# *[ #???????????????????????????????? | | ?############## #???????????????????????????????? | | ??????????????# #???????????????????????????????? | | ??????????????# #???????????????????????????????? | | ??????????????# #???????????????????????????????? | | ??????????????# #???????????????????????????????? | | ??????????????# #????#??????????????????????????? | | ############### ###########?????????????????????? | | ]!!* ##????#???????????????? | | ##"""########## g #?????????????????????? | | ??????????????# ########@ #???????? ????????????? | | ??????????????# #??????#g #?????????????????????? | | ????????????#?# ##?????# ^#???#?#????#??????????? | | ??????????#?#?# #??#???# #?????????#? ?????????? | | ??????????????# +??????# #??????#????#?????????? | | ?????#????????# #??????# #?#?#?????#???????????? | | ??????????????# #? #???# #? ????#? ##?#?#??????? | | ?????#????????# #?????## ##""""## ##??????????? | | ???????????#??# ####### #??????????? | | ??????????##### ????????? | | ??? ????????? | | ?#?#???################# ## #??? #??????????? | | ???????????#???##????### ## ## ###????????? | | ??????????#????#?##??# ##???????? | | ?????????#?????#?#?### #????????? | | ??#??##??###??##?????# ^^ #????????? | | ????????????#???##??## #????????? | | ????????###??##?#????### ## ## ###????????? | | ???? ?? ###??########### ## ## ##????#????? | | ?#????? ?????# #??????????? | | ???#??? ? ???# #??????????? | | ????????????## ######## #?#????????? | | #?#?????????## ## ???### ##""""## #?????#????? | | ?????#????#??# ## ????## #??????? #??????????? | | ?###?? ????#?# #??????## #??###??? #??????????? | +----------------------------------------------------+ Best States ------------- Heat Dissipation 31 Energy Generation 14 Energy Capacity 250 Matter Stores 300 Matter Capacity 300 Sight Range 16 Terrain Scan Range 20 Terrain Scan Density 110 Armor Coverage 150 Evasion (%) 63 Item Schematics ----------------- None Robot Schematics ------------------ None Fabricated ------------ Nothing Alien Tech Used ----------------- None Achievements -------------- None Challenges ------------ None Game ------ Seed GlidesysMicroPerforator Manual? 0 Play Time 00:15:50 Cumulative 111.3 hours Start 2020.06.30 @ 09:33:32 End 2020.06.30 @ 09:48:38 Sessions 1 Manual Loads 0 Difficulty Rogue Special Mode None Game No. 202 Rogue 199 Adventurer 1 Explorer 2 Win Type - Total 4 Types 4/0/0/0/0/0/0 Lore% 64 Gallery% 63 Achievement% 53 Wizard Run 0 Options --------- ASCII 0 Keyboard 1 Movement Numpad Keybinds 0 Fullscreen 2 Font 18/SmallcapsGlow Map View 76x50 Tactical HUD 1 Map Filters NONE Filters NONE Steam 1 RUN: 54dde790-675f-4ab4-b30d-772192113c8e